Workbook

Sheet Sheet1
A1: VIGNYANA VAHINI ANNUAL BUDGET 2010 – 2011
B3: Category | C3: Budget | D3: Expenses | E3: % usage
A5: Operational Cost
B6: Internet | C6: =1200+3600+3600+16500 -> 24900 | D6: 27557 | E6: =D6*100/C6 -> 110.6706827
B7: Phone calls
B8: Miscellaneous
B9: Office Rent
A11: Transportation
B12: Vehicle maintenance | C12: 56000 | D12: 53675 | E12: =D12*100/C12 -> 95.84821429
B13: Staff Travel | C13: 7200 | D13: 7245 | E13: =D13*100/C13 -> 100.625
B14: Total | C14: =C12+C13 -> 63200 | D14: =D12+D13 -> 60920 | E14: =D14*100/C14 -> 96.39240506
A16: Capacity building
B17: Teacher training | C17: 34000 | D17: 34000 | E17: =D17*100/C17 -> 100
B18: Students' training | C18: 6000 | D18: 5823 | E18: =D18*100/C18 -> 97.05
B19: Teachers' meetings | C19: 2000 | D19: 1648 | E19: =D19*100/C19 -> 82.4
B20: Total | C20: =SUM(C17:C19) -> 42000 | D20: =SUM(D17:D19) -> 41471 | E20: =D20*100/C20 -> 98.74047619
A22: Technical and Resource support
B23: Teaching materials and lab maintenance | C23: 145000 | D23: 139990 | E23: =D23*100/C23 -> 96.54482759
B24: Documentation | C24: 2000 | D24: 0 | E24: =D24*100/C24 -> 0
B25: Prayoga | C25: 4000 | D25: 0 | E25: =D25*100/C25 -> 0
B26: Total | C26: =C23+C24+C25 -> 151000 | D26: =SUM(D23:D25) -> 139990 | E26: =D26*100/C26 -> 92.70860927
A28: Personnel cost
B29: Coordinator salary | C29: 86400 | D29: 86400 | E29: =D29*100/C29 -> 100
B30: Science and Maths Facilitator | C30: 72000 | D30: 72000 | E30: =D30*100/C30 -> 100
B31: Total | C31: =C29+C30 -> 158400 | D31: =D29+D30 -> 158400 | E31: =D31*100/C31 -> 100
A33: Events
B34: National science day | C34: 54000 | D34: 54608 | E34: =D34*100/C34 -> 101.1259259
B35: Awareness campaigns | C35: 10000 | D35: 8200 | E35: 82
B36: Other events | C36: 12000 | D36: 9120 | E36: 76
B37: Award for best performing schools | C37: 5000 | D37: 5000 | E37: 100
B38: Science Calendar | C38: 29500 | D38: 30071 | E38: 101.9355932
B39: Total | C39: =SUM(C34:C38) -> 110500 | D39: =SUM(D34:D38) -> 106999 | E39: 96.83167421
B42: Grand total | C42: =C6+C14+C20+C26+C31+C39 -> 550000 | D42: =D6+D14+D20+D26+D31+D39 -> 535337 | E42: =D42*100/C42 -> 97.334

Sheet Sheet2

Sheet Sheet3
